bitfinex-derivatives/quotes_ETHF0:USTF0_20250115
["timestamp","ask_amount","ask_price","bid_price","bid_amount"]
[1736940476112,2.72724788,3194.6,3193.0,0.9888]
[1736940476113,3.2078,3194.4,3193.8,3.2078]
[1736940476312,3.2078,3194.4,3193.9,41.7876]
[1736940476813,3.2078,3194.4,3194.0,2.48970048]
[1736940477007,4.6646,3194.9,3194.0,2.48970048]
[1736940477413,3.61286667,3194.8,3194.0,2.48970048]
[1736940478322,4.1927,3194.9,3194.3,2.48970048]
[1736940481117,4.1927,3194.9,3194.2,3.2078]
[1736940481317,0.4921,3194.8,3194.2,3.2078]
[1736940482318,0.9849,3194.9,3194.4,2.48970048]
[1736940482714,0.9849,3194.9,3194.5,0.4729]
[1736940482923,0.9849,3194.9,3194.6,0.4597]
[1736940483118,0.9849,3194.9,3194.7,40.8]
[1736940483718,7.86378084,3195.3,3194.2,4.4748]
[1736940483922,0.9427,3195.2,3194.2,4.4748]
[1736940484115,4.45169731,3195.2,3194.3,40.8]
[1736940485217,3.2078,3195.1,3194.3,40.8]
[1736940485720,3.30567335,3195.0,3194.3,40.8]
[1736940488526,3.30567335,3195.0,3194.6,3.2078]
[1736940488726,0.9427,3195.2,3194.7,2.98760048]
[1736940488925,0.9427,3195.2,3194.7,3.47500048]
[1736940491219,0.9427,3195.2,3194.7,0.4979]
[1736940491220,3.47166305,3195.1,3194.7,0.4979]
[1736940491626,6.67946305,3195.1,3194.6,3.2078]
[1736940494928,3.47166305,3195.1,3194.6,3.2078]
[1736940495130,0.9427,3195.2,3194.6,3.2078]
[1736940495432,0.9427,3195.2,3194.7,0.4724]
[1736940496024,6.63622385,3195.1,3194.6,3.2078]
[1736940496229,9.12592433,3195.1,3194.6,3.2078]
[1736940498534,2.48970048,3194.8,3194.0,3.2078]
[1736940498733,0.4692,3194.7,3194.0,3.2078]
[1736940498930,4.04809688,3194.7,3194.0,3.2078]
[1736940499129,0.4633,3194.6,3194.0,3.2078]
[1736940499330,0.4659,3194.5,3194.0,3.2078]
[1736940499530,3.82016411,3194.5,3194.0,3.2078]
[1736940501736,3.82016411,3194.5,3193.8,44.0078]
[1736940503634,3.35426411,3194.5,3194.0,2.48970048]
[1736940503838,0.4633,3194.6,3194.0,2.48970048]
[1736940507339,3.60447121,3194.5,3193.8,44.0078]
[1736940510740,6.09417169,3194.5,3193.8,3.2078]
[1736940510938,2.48970048,3194.2,3193.8,3.2078]
[1736940511141,5.69750048,3193.9,3193.0,0.493]
[1736940511340,3.2078,3193.4,3192.9,44.38183]
[1736940511541,0.9878,3193.3,3192.9,3.58183]
[1736940511842,7.43958404,3193.3,3192.9,3.58183]
[1736940513439,4.94988356,3193.3,3192.9,3.58183]
[1736940514442,4.47728356,3193.3,3192.9,0.37403]
[1736940514643,3.2078,3193.4,3192.9,0.37403]
[1736940517650,4.129,3193.8,3192.9,3.58183]
[1736940517846,4.129,3193.8,3193.0,0.5008]
[1736940518148,3.57389519,3193.5,3192.9,3.58183]
[1736940518344,3.57389519,3193.7,3192.9,3.58183]
[1736940518345,2.48970048,3193.6,3192.9,3.58183]
[1736940518652,3.2078,3193.4,3192.9,3.58183]
[1736940519046,3.31490417,3193.3,3192.9,3.58183]
[1736940519449,0.4652,3193.2,3192.9,3.58183]
[1736940519850,3.59586069,3193.1,3192.9,3.58183]
[1736940521051,3.6738,3193.8,3192.9,3.58183]
[1736940521347,3.31998458,3193.3,3192.9,3.58183]
[1736940521751,3.6738,3193.8,3192.9,3.58183]
[1736940522048,3.37777666,3193.3,3192.9,3.58183]
[1736940522355,3.6738,3193.8,3192.9,3.58183]
[1736940522755,3.37777666,3193.5,3192.9,3.58183]
[1736940522950,3.37777666,3193.7,3192.9,3.58183]
[1736940523151,3.6738,3193.8,3192.9,3.58183]
[1736940523346,3.46696143,3193.7,3192.9,3.58183]
[1736940525956,3.6738,3193.8,3192.9,3.58183]
[1736940525957,3.2078,3193.8,3193.1,2.48970048]
[1736940526156,3.2078,3193.8,3193.2,0.9768]
[1736940526460,3.2078,3193.8,3193.2,1.4478]
[1736940527360,0.4795,3194.2,3193.5,3.2078]
[1736940527751,0.4795,3194.2,3193.6,40.8]
[1736940528760,3.2078,3194.3,3193.6,40.8]
[1736940529454,3.2078,3194.3,3193.7,2.48970048]
[1736940529855,3.2078,3194.3,3193.8,0.4937]
[1736940530055,3.2078,3194.3,3193.9,0.4737]
[1736940530456,3.2078,3194.3,3193.9,0.9386]
[1736940532366,3.2078,3194.3,3193.9,0.4737]
[1736940535254,1.0019,3194.5,3193.9,3.6815]
[1736940535958,3.2078,3194.4,3193.9,0.4737]
[1736940536160,1.0019,3194.5,3193.9,0.4737]
[1736940537066,4.2097,3194.5,3193.9,0.4737]
[1736940537263,2.48970048,3194.3,3193.4,3.2078]
[1736940537467,0.4624,3194.2,3193.4,3.2078]
[1736940537670,3.7347626,3194.2,3193.4,3.2078]
[1736940541977,3.7347626,3194.2,3193.3,44.0078]
[1736940542281,3.2723626,3194.2,3193.7,3.2078]
[1736940542476,3.2723626,3194.2,3193.8,0.9754]
[1736940542673,3.27579619,3194.3,3193.8,0.9754]
[1736940542878,1.4605,3194.5,3193.8,0.9754]
[1736940543088,3.27579619,3194.4,3193.8,0.9754]
[1736940543287,1.4605,3194.5,3193.8,0.9754]
[1736940543781,3.38251765,3194.4,3193.8,0.9754]
[1736940544982,3.2078,3194.2,3193.4,3.75670048]
[1736940545189,3.2078,3194.2,3193.4,1.723]
[1736940545485,3.37460551,3194.1,3193.4,1.723]
[1736940552587,2.48970048,3194.3,3193.3,3.2078]
[1736940552588,5.69750048,3194.0,3193.3,3.2078]
[1736940552801,2.48970048,3193.7,3193.3,3.2078]
[1736940553090,3.32858508,3193.6,3192.9,3.58183]
[1736940553686,2.48970048,3193.4,3192.9,3.58183]
[1736940553891,0.9623,3193.3,3192.9,3.58183]
[1736940554190,2.48970048,3193.1,3192.9,0.37403]
[1736940554394,3.2078,3193.0,3192.9,0.37403]
[1736940554591,6.61212225,3193.0,3192.3,3.2078]
[1736940554897,2.48970048,3192.8,3192.3,44.0078]
[1736940555393,3.34283199,3192.7,3192.3,44.0078]
[1736940555592,0.9735,3192.6,3192.3,44.0078]
[1736940555995,3.34283199,3192.5,3192.3,44.0078]
[1736940556191,5.83253247,3192.5,3192.3,3.2078]
[1736940556386,5.83253247,3192.5,3191.9,3.2078]
[1736940556587,2.48970048,3192.2,3191.9,3.2078]
[1736940556891,2.48970048,3192.2,3191.4,3.2078]
[1736940557083,3.58567679,3192.1,3191.4,3.2078]
[1736940557787,0.4712,3192.0,3191.4,3.2078]
[1736940558190,3.33671986,3191.9,3191.4,3.2078]
[1736940558397,0.4712,3192.0,3191.4,3.2078]
[1736940558792,2.48970048,3192.5,3191.8,3.2078]
[1736940558992,2.96090048,3192.5,3191.8,3.2078]
[1736940559193,3.58192102,3192.4,3191.9,0.4703]
[1736940559995,3.58192102,3192.4,3192.0,0.4969]
[1736940560796,0.4712,3192.5,3192.0,0.4969]
[1736940560985,0.472,3192.6,3192.0,0.4969]
[1736940562302,0.472,3192.6,3192.1,40.8]
[1736940562992,4.1797,3193.1,3192.2,3.2078]
[1736940563287,3.27647949,3193.0,3192.4,2.48970048]
[1736940563693,3.7028,3193.1,3192.5,0.4674]
[1736940564089,3.2078,3193.1,3192.6,3.2078]
[1736940564398,3.2078,3193.1,3192.7,3.42260048]
[1736940567202,0.5006,3193.5,3192.7,3.42260048]
[1736940567499,3.59192981,3193.4,3192.7,3.42260048]
[1736940567700,3.59192981,3193.4,3192.8,40.8]
[1736940567896,3.59192981,3193.4,3193.0,3.2078]
[1736940568299,3.59192981,3193.4,3193.1,0.4761]
[1736940570002,3.59192981,3193.4,3193.0,3.2078]
[1736940575910,0.493,3193.6,3193.1,40.8]
[1736940576115,0.493,3193.6,3193.1,41.3027]
[1736940576315,3.2078,3193.7,3193.2,2.48970048]
[1736940577116,3.2078,3193.7,3193.5,2.48970048]
[1736940577310,3.2078,3193.7,3193.6,0.985]
[1736940578400,3.694,3194.3,3193.6,0.985]
[1736940578603,0.9779,3194.5,3193.8,5.69750048]
[1736940579006,0.9779,3194.5,3194.1,2.48970048]
[1736940579408,0.9779,3194.5,3194.2,0.4985]
[1736940580409,3.26845489,3194.4,3193.8,3.2078]
[1736940580613,3.73725489,3194.4,3193.8,3.2078]
[1736940583011,0.9779,3194.5,3193.9,0.4688]
[1736940583315,3.21981,3194.7,3194.1,2.48970048]
[1736940583718,3.31267973,3194.6,3194.2,40.8]
[1736940583908,3.31267973,3194.6,3194.3,0.5009]
[1736940587008,3.31267973,3194.6,3194.2,3.2078]
[1736940587207,0.48,3194.5,3194.2,3.2078]
[1736940589612,3.31267973,3194.6,3194.2,3.2078]
[1736940591417,0.01201,3194.7,3194.2,3.2078]
[1736940603324,0.01201,3194.7,3194.6,3.2078]
[1736940604324,0.01201,3194.7,3194.6,3.666]
[1736940605227,0.4794,3195.6,3194.6,3.666]
[1736940605424,3.2078,3195.7,3195.3,2.48970048]
[1736940605629,3.2078,3195.7,3195.4,0.931]
[1736940605829,3.44889748,3195.6,3195.4,0.931]
[1736940606034,3.44889748,3195.6,3195.5,40.8]
[1736940606826,3.44889748,3195.6,3195.2,3.2078]
[1736940607032,0.955,3195.5,3195.2,3.2078]
[1736940608131,0.491,3195.5,3195.3,0.5002]
[1736940608533,0.4897,3195.9,3195.3,2.98990048]
[1736940608829,0.491,3195.8,3195.4,0.456]
[1736940611725,0.4897,3195.9,3195.4,0.456]
[1736940612133,0.4897,3195.9,3195.6,3.2078]
[1736940613031,0.4706,3196.1,3195.6,5.69750048]
[1736940613233,0.23017884,3196.9,3196.0,5.69750048]
[1736940613439,3.2078,3197.1,3196.4,2.48970048]
[1736940613440,4.6623,3197.1,3196.4,2.48970048]
[1736940613637,8.04923562,3197.1,3196.4,2.48970048]
[1736940614130,8.04923562,3197.1,3196.2,40.8]
[1736940614131,2.48970048,3196.9,3196.2,40.8]
[1736940614635,3.61292917,3196.8,3196.1,0.9455]
[1736940614939,3.61292917,3196.8,3196.0,3.2078]
[1736940615530,3.84479998,3196.8,3196.0,3.2078]
[1736940616044,0.23187081,3196.8,3196.2,2.48970048]
[1736940616241,0.69377081,3196.8,3196.2,2.48970048]
[1736940616538,0.69377081,3196.8,3196.3,0.9472]
[1736940617938,3.41411396,3196.7,3196.3,0.9472]
[1736940619231,0.69377081,3196.8,3196.3,0.9472]
[1736940620229,3.30181508,3196.7,3196.3,0.4782]
[1736940620842,3.30181508,3196.7,3196.0,3.2078]
[1736940621430,2.48970048,3196.6,3196.0,3.2078]
[1736940621631,0.4768,3196.5,3196.0,3.2078]
[1736940621843,4.23743204,3196.5,3196.0,3.2078]
[1736940624243,3.2078,3196.3,3195.6,3.2078]
[1736940624439,0.4777,3196.2,3195.6,3.2078]
[1736940624632,3.83828977,3196.2,3195.6,3.2078]
[1736940624841,2.48970048,3196.0,3195.5,40.8]
[1736940625040,0.4671,3195.9,3195.5,40.8]
[1736940625242,4.31928977,3195.9,3195.5,40.8]
[1736940625438,0.9587,3195.9,3195.5,40.8]
[1736940625646,0.9587,3195.9,3195.4,3.6836]
[1736940626142,0.9587,3195.9,3195.4,44.4836]
[1736940628245,0.9587,3195.9,3195.6,2.48970048]
[1736940628441,1.4329,3196.2,3195.6,2.48970048]
[1736940630046,1.4329,3196.2,3195.5,0.9235]
[1736940630841,1.4329,3196.2,3195.5,3.41320048]
[1736940631846,0.9552,3196.2,3195.9,3.2078]
[1736940632050,0.9552,3196.2,3196.0,0.4964]
[1736940632348,3.6619,3196.7,3196.0,0.4964]
[1736940632650,3.2078,3196.7,3196.3,3.2078]
[1736940632847,4.196,3196.7,3196.3,3.2078]
[1736940633547,3.41709043,3196.6,3196.3,3.2078]
[1736940634141,3.41709043,3196.6,3196.1,0.4812]
[1736940634754,3.41709043,3196.6,3196.2,3.2078]
[1736940636751,3.41709043,3196.6,3196.4,2.48970048]
[1736940637059,4.6875,3197.2,3196.4,2.48970048]
[1736940637246,2.48970048,3197.1,3196.6,3.2078]
[1736940637652,3.39486583,3197.0,3196.6,3.2078]
[1736940637847,3.39486583,3197.0,3196.7,40.8]
[1736940638051,3.39486583,3197.0,3196.6,3.2078]
[1736940641851,3.39486583,3197.0,3196.7,0.9412]
[1736940642056,3.36501535,3197.1,3196.7,0.9412]
[1736940642549,1.4797,3197.2,3196.7,0.9412]
[1736940642750,3.30200069,3197.1,3196.7,0.9412]
[1736940643749,5.79170117,3197.1,3196.6,3.2078]
[1736940645355,2.48970048,3196.8,3196.6,3.2078]
[1736940645854,2.48970048,3196.8,3195.9,0.5039]
[1736940645855,4.02710321,3196.7,3196.0,3.2078]
[1736940646056,2.48970048,3196.5,3196.0,3.2078]
[1736940646462,3.56140321,3196.4,3196.0,3.2078]
[1736940647162,5.90125225,3196.5,3196.0,3.2078]
[1736940647363,2.48970048,3196.5,3196.0,3.2078]
[1736940647758,3.5658121,3196.4,3196.0,3.2078]
[1736940648967,2.48970048,3196.2,3196.0,3.2078]
[1736940649461,3.77669827,3196.1,3196.0,3.2078]
[1736940649871,3.77669827,3196.1,3195.5,3.2078]
[1736940650064,2.48970048,3195.9,3195.5,3.2078]
[1736940650262,0.4814,3195.8,3195.5,3.2078]
[1736940650460,2.48970048,3195.6,3195.5,3.2078]
[1736940650966,2.48970048,3195.6,3194.4,2.48970048]
[1736940650967,14.01832276,3195.6,3194.8,3.2078]
[1736940651158,2.48970048,3195.3,3194.8,3.2078]
[1736940651560,3.6069426,3195.2,3194.8,3.2078]
[1736940652059,0.4667,3195.1,3194.8,3.2078]
[1736940652571,3.6069426,3195.0,3194.8,3.2078]
[1736940653665,6.8147426,3195.0,3194.5,40.8]
[1736940655171,3.6069426,3195.0,3194.5,40.8]
[1736940656661,3.2078,3195.4,3194.8,3.2078]
[1736940656865,0.4603,3195.3,3194.9,0.4649]
[1736940657067,3.55660156,3195.2,3194.9,0.4649]
[1736940657264,4.01690156,3195.3,3195.0,0.4812]
[1736940657471,0.4603,3195.3,3195.0,0.4812]
[1736940657767,3.51108105,3195.2,3195.0,0.4812]
[1736940659976,3.2078,3195.4,3195.0,0.4812]
[1736940660269,3.62354377,3195.3,3195.0,0.4812]
[1736940660570,6.11324425,3195.3,3194.8,3.2078]
[1736940660772,0.4665,3195.2,3194.6,0.4827]
[1736940661173,3.34140624,3195.1,3194.6,0.4827]
[1736940663165,3.34140624,3195.1,3194.8,3.2078]
[1736940665871,3.34140624,3195.1,3194.6,0.4827]
[1736940666075,2.48970048,3195.0,3194.6,0.4827]
[1736940666578,3.30250276,3194.9,3194.6,0.4827]
[1736940666971,3.45647496,3195.0,3194.6,0.4827]
[1736940667173,3.45647496,3195.1,3194.6,0.4827]
[1736940667371,0.4665,3195.2,3194.6,0.4827]
[1736940667773,3.52433137,3195.1,3194.6,0.4827]
[1736940672870,3.52433137,3195.1,3194.7,0.4553]
[1736940673073,3.62934562,3195.3,3194.8,3.2078]
[1736940673279,3.62934562,3195.3,3194.6,0.4827]
[1736940673483,3.695,3195.4,3194.6,0.4827]
[1736940673682,3.6282091,3195.3,3194.6,0.4827]
[1736940674286,3.6282091,3195.3,3194.8,3.2078]
[1736940674679,3.6282091,3195.3,3194.9,0.4866]
[1736940674880,3.6282091,3195.3,3195.2,3.2078]
[1736940675079,0.9385,3196.2,3195.2,3.2078]
[1736940675279,0.9385,3196.2,3195.5,5.69750048]
[1736940675483,4.52202612,3196.2,3195.5,5.69750048]
[1736940675781,4.52202612,3196.2,3195.6,40.8]
[1736940676985,4.52202612,3196.2,3195.5,3.2078]
[1736940677191,2.48970048,3195.7,3195.5,3.2078]
[1736940677387,1.4305,3195.6,3195.5,3.2078]
[1736940677582,4.99580175,3195.6,3195.0,0.4648]
[1736940677886,8.20360175,3195.6,3195.0,0.4648]
[1736940680184,8.20360175,3195.6,3194.9,3.2078]
[1736940680395,2.48970048,3195.1,3194.5,0.4941]
[1736940680594,0.4853,3195.0,3194.5,0.4941]
[1736940680794,3.55579243,3195.0,3194.6,40.8]
[1736940681093,3.2078,3195.2,3194.7,0.4931]
[1736940681391,3.2078,3195.2,3194.8,3.2078]
[1736940682988,0.4717,3195.5,3194.8,3.2078]
[1736940683193,0.4926,3195.8,3194.8,3.2078]
[1736940683389,0.9643,3195.8,3194.8,3.2078]
[1736940683596,4.24028402,3195.8,3194.8,3.2078]
[1736940684095,3.2078,3196.6,3195.7,3.2078]
[1736940684298,4.166,3196.6,3195.8,0.9534]
[1736940684592,7.77524625,3196.6,3195.8,0.9534]
[1736940685289,7.77524625,3196.6,3195.9,2.48970048]
[1736940685484,7.30964625,3196.6,3195.9,2.48970048]
[1736940686189,4.10184625,3196.6,3196.0,3.2078]
[1736940686397,3.60924625,3196.6,3196.0,44.0078]
[1736940686788,3.2078,3197.0,3196.2,2.48970048]
[1736940686994,3.2078,3197.0,3196.0,45.2688]
[1736940686995,3.2078,3197.0,3196.6,3.2078]
[1736940688497,0.4542,3197.1,3196.2,5.69750048]
[1736940688797,3.72798434,3197.1,3196.2,5.69750048]
[1736940690491,2.48970048,3197.0,3196.2,3.2078]
[1736940690795,3.72798434,3197.1,3196.2,3.2078]
[1736940690796,2.48970048,3196.7,3196.2,3.2078]
[1736940691097,2.48970048,3196.4,3195.8,3.2078]
[1736940691304,0.9683,3196.3,3195.8,3.2078]
[1736940691507,4.37715987,3196.3,3195.8,3.2078]
[1736940693196,3.2078,3196.5,3195.8,3.2078]
[1736940693403,3.2078,3196.5,3195.9,3.74370048]
[1736940693603,0.4811,3196.6,3195.9,3.74370048]
[1736940693604,0.4811,3196.6,3195.9,4.22030048]
[1736940694101,0.4939,3196.8,3196.2,5.69750048]
[1736940694301,0.4939,3196.8,3196.3,0.455]
[1736940694795,0.4939,3196.8,3196.4,0.4766]
[1736940694998,0.4715,3196.7,3196.4,0.4766]
[1736940696700,0.4715,3196.7,3196.5,40.8]
[1736940699502,0.4641,3197.0,3196.6,3.2078]
[1736940699700,0.9793,3197.1,3196.6,3.2078]
[1736940700203,0.9793,3197.1,3196.7,40.8]
[1736940702196,6.16400048,3197.8,3196.7,40.8]
[1736940702402,0.933,3197.7,3196.7,40.8]
[1736940702598,4.480722,3197.7,3196.7,40.8]
[1736940703406,4.480722,3197.7,3196.8,2.48970048]
[1736940703596,4.480722,3197.7,3196.9,0.4719]
[1736940703801,4.480722,3197.7,3196.9,0.9622]
[1736940704798,2.48970048,3197.2,3196.6,3.2078]
[1736940705004,5.69750048,3196.8,3196.1,3.2078]
[1736940705203,0.4922,3196.7,3196.1,3.2078]
[1736940705400,4.05969451,3196.7,3196.1,3.2078]
[1736940708703,3.56749451,3196.7,3196.1,3.2078]
[1736940708905,3.56749451,3196.7,3196.3,2.48970048]
[1736940709213,1.437,3197.1,3196.6,2.48970048]
[1736940709214,0.9577,3197.1,3196.6,2.48970048]
[1736940709502,0.9577,3197.1,3196.7,0.4565]
[1736940710313,3.56718139,3197.0,3196.5,3.2078]
[1736940710713,0.4793,3196.9,3196.5,3.2078]
[1736940711011,3.43426395,3196.8,3196.1,44.4643]
[1736940711211,3.43426395,3196.8,3196.2,0.4679]
[1736940713405,3.43426395,3196.8,3196.3,2.48970048]
[1736940713609,0.9577,3197.1,3196.5,3.2078]
[1736940713813,0.9577,3197.1,3196.6,0.4677]
[1736940714015,3.36604643,3197.0,3196.6,0.4677]
[1736940716211,0.9459,3197.5,3196.7,40.8]
[1736940716407,0.9459,3197.5,3196.8,0.5021]
[1736940716613,3.31737768,3197.4,3196.8,0.5021]
[1736940717310,2.48970048,3197.1,3196.6,0.4677]
[1736940717510,0.4679,3197.0,3196.6,0.4677]
[1736940717714,0.4601,3196.9,3196.6,0.4677]
[1736940718211,3.3796891,3196.8,3196.6,0.4677]
[1736940718520,3.3796891,3196.8,3196.5,3.2078]
[1736940718926,3.3796891,3196.8,3196.3,0.9923]
[1736940719106,3.2078,3197.2,3196.5,5.69750048]
[1736940719814,0.9415,3197.1,3196.5,5.69750048]
[1736940720017,4.26033475,3197.1,3196.5,5.69750048]
[1736940720317,4.26033475,3197.1,3196.5,3.2078]
[1736940723007,4.26033475,3197.1,3196.5,5.69750048]
[1736940723210,0.9415,3197.1,3196.5,5.69750048]
[1736940723419,0.9415,3197.1,3196.5,3.2078]
[1736940723717,3.62325974,3197.0,3196.5,3.2078]
[1736940728016,0.9415,3197.1,3196.5,5.69750048]
[1736940728216,0.4867,3197.3,3196.5,5.69750048]
[1736940728617,3.5554299,3197.2,3196.5,5.69750048]
[1736940730123,3.5554299,3197.2,3196.5,3.2078]
[1736940730719,2.48970048,3197.1,3196.5,3.2078]
[1736940731222,4.00163595,3197.0,3196.5,3.2078]
[1736940731415,0.485,3196.9,3196.5,3.2078]
[1736940731813,3.56767543,3196.8,3196.5,3.2078]
[1736940733021,6.05737591,3196.8,3196.5,3.2078]
[1736940733217,6.05737591,3196.8,3196.4,3.2078]
[1736940733422,0.4691,3196.7,3196.4,3.2078]
[1736940733923,0.4691,3196.7,3196.0,3.2078]
[1736940733924,2.48970048,3196.5,3196.0,3.2078]
[1736940734324,0.4691,3196.7,3195.8,40.8]
[1736940734325,2.48970048,3196.2,3195.8,40.8]
[1736940734624,0.9538,3196.1,3195.8,40.8]
[1736940734823,3.86297167,3196.1,3195.8,40.8]
[1736940735219,0.9538,3196.1,3195.8,40.8]
[1736940735425,3.53667885,3196.0,3195.8,40.8]
[1736940737119,2.95580048,3195.9,3195.6,3.2078]
[1736940737525,3.59241555,3195.8,3195.6,3.2078]
[1736940738523,3.59241555,3195.8,3195.2,3.2078]
[1736940738724,2.48970048,3195.6,3195.2,3.2078]
[1736940738924,0.9631,3195.5,3195.2,3.2078]
[1736940739126,4.33081909,3195.5,3195.2,3.2078]
[1736940740420,3.36771909,3195.5,3195.2,3.2078]
[1736940740728,3.36771909,3195.5,3195.3,0.9668]
[1736940740928,3.6739,3195.9,3195.3,0.9668]
[1736940741130,3.6739,3195.9,3195.4,0.4701]
[1736940741430,3.54705906,3195.8,3195.4,0.4701]
[1736940741631,3.54705906,3195.8,3195.3,0.9668]
[1736940742125,0.4887,3195.7,3194.8,44.0078]
[1736940742326,2.48970048,3195.5,3194.8,44.0078]
[1736940742727,2.48970048,3195.1,3194.8,44.0078]
[1736940742930,0.9801,3195.0,3194.8,44.0078]
[1736940743229,4.28713782,3195.0,3194.8,40.8]
[1736940743526,0.5014,3194.9,3194.4,3.2078]
[1736940743925,3.45529082,3194.8,3194.4,3.2078]
[1736940746127,5.9449913,3194.8,3194.4,3.2078]
[1736940746334,2.48970048,3194.5,3194.4,3.2078]
[1736940746827,5.81751353,3194.5,3194.4,3.2078]
[1736940748320,5.81751353,3194.5,3193.9,44.0078]
[1736940748520,2.48970048,3194.2,3193.9,3.2078]
[1736940748829,3.60387285,3194.1,3193.9,3.2078]
[1736940749933,3.60387285,3194.2,3193.9,3.2078]
[1736940750231,3.2078,3194.3,3193.9,3.2078]
[1736940750421,3.26923682,3194.2,3193.9,3.2078]
[1736940752628,3.2078,3195.0,3194.0,0.4908]
[1736940752829,3.2078,3195.0,3194.1,0.4669]
[1736940753038,2.48970048,3194.8,3194.1,0.4669]
[1736940753234,0.9434,3194.7,3194.1,0.4669]
[1736940753433,2.48970048,3194.2,3193.9,3.2078]
[1736940753632,0.9666,3194.1,3193.5,3.2078]
[1736940753932,2.48970048,3193.9,3193.5,3.2078]
[1736940754331,3.500637,3193.8,3193.5,3.2078]
[1736940754638,3.500637,3193.8,3192.7,3.2078]
[1736940754639,2.48970048,3193.6,3192.7,3.2078]
[1736940754835,5.69750048,3193.3,3192.8,0.4937]
[1736940755141,3.30396124,3193.2,3192.8,0.9965]
[1736940755530,0.51500545,3193.4,3192.8,0.9965]
[1736940755731,0.9715,3193.5,3192.8,0.9965]
[1736940756237,2.48970048,3193.3,3192.8,0.9965]
[1736940756434,3.50179618,3193.4,3192.2,3.2078]
[1736940756435,3.2078,3192.9,3192.2,3.2078]
[1736940756736,2.48970048,3192.7,3192.2,3.2078]
[1736940756931,2.48970048,3192.7,3192.3,0.9434]
[1736940757235,3.59210455,3192.6,3192.3,0.9434]
[1736940757435,3.59210455,3192.6,3192.2,3.2078]
[1736940757831,3.2078,3192.5,3191.8,0.9434]
[1736940758033,2.48970048,3192.4,3191.8,0.9434]
[1736940758232,6.00853773,3192.4,3191.8,0.9434]
[1736940758637,6.00853773,3192.4,3191.8,4.1512]
[1736940758938,6.00853773,3192.4,3191.8,0.9434]
[1736940759137,6.00853773,3192.4,3191.8,4.1512]
[1736940761235,6.00853773,3192.4,3191.8,3.2078]
[1736940761430,3.01910959,3192.3,3191.8,3.2078]
[1736940761635,3.2078,3191.9,3191.3,41.7757]
[1736940762040,3.39705907,3191.8,3191.3,41.7757]
[1736940762238,3.39705907,3191.8,3191.3,0.9757]
[1736940762731,3.39705907,3191.8,3191.4,40.8]
[1736940763642,3.39705907,3191.8,3191.5,0.457]
[1736940764144,6.22690959,3192.3,3191.5,0.457]
[1736940764145,3.45918894,3192.0,3191.5,0.457]
[1736940764640,3.45918894,3192.1,3191.5,0.457]
[1736940764842,6.22690959,3192.3,3191.5,0.457]
[1736940765039,3.63210656,3192.1,3191.5,0.457]
[1736940765440,6.22690959,3192.3,3191.5,0.457]
[1736940765837,3.63210656,3192.0,3191.5,0.457]
[1736940766035,3.63210656,3192.1,3191.5,0.457]
[1736940766244,6.22690959,3192.3,3191.6,3.2078]
[1736940766540,3.29471739,3192.0,3191.6,3.2078]
[1736940766736,3.29471739,3192.1,3191.6,3.2078]
[1736940766937,6.22690959,3192.3,3191.6,3.2078]
[1736940767245,3.63687111,3192.0,3191.6,3.2078]
[1736940767446,3.63687111,3192.1,3191.6,3.2078]
[1736940767746,6.22690959,3192.3,3191.6,3.2078]
[1736940768041,3.63687111,3192.0,3191.6,3.2078]
[1736940768246,3.59636896,3192.1,3191.7,40.8]
[1736940768434,6.22690959,3192.3,3191.7,40.8]
[1736940768634,3.59636896,3192.0,3191.7,40.8]
[1736940769037,6.22690959,3192.3,3191.5,0.457]
[1736940769433,3.27483565,3192.0,3191.6,40.8]
[1736940769642,3.27483565,3192.2,3191.6,40.8]
[1736940769845,6.22690959,3192.3,3191.6,40.8]
[1736940770047,3.53216628,3192.0,3191.6,40.8]
[1736940770242,3.53216628,3192.2,3191.6,40.8]
[1736940770438,6.22690959,3192.3,3191.6,40.8]
[1736940770938,3.53216628,3192.2,3191.6,40.8]
[1736940771144,0.23661924,3191.9,3191.5,0.457]
[1736940771339,0.4756,3191.8,3191.5,0.457]
[1736940771548,4.09993135,3191.8,3191.5,0.457]
[1736940772344,3.62433135,3191.8,3191.5,0.457]
[1736940772743,0.4756,3192.2,3191.5,0.457]
[1736940772937,3.2078,3192.3,3191.5,0.457]
[1736940773142,3.2078,3192.3,3191.7,3.2078]
[1736940773347,3.34381045,3192.2,3191.7,3.2078]
[1736940775850,3.34381045,3192.2,3191.5,0.457]
[1736940777248,3.34381045,3192.2,3191.7,3.2078]
[1736940778357,3.34381045,3192.2,3191.6,3.2078]
[1736940778649,3.34381045,3192.2,3191.5,0.457]
[1736940778850,3.01910959,3192.1,3191.5,0.457]
[1736940779050,0.24072069,3191.9,3191.5,0.457]
[1736940779350,4.08787116,3191.8,3191.5,0.457]
[1736940779962,7.10698075,3191.8,3191.3,0.9757]
[1736940781649,3.01910959,3191.5,3191.1,44.0078]
[1736940781850,3.01910959,3191.5,3191.1,3.2078]
[1736940782045,3.92091886,3191.4,3191.1,3.2078]
[1736940782253,7.12871886,3191.4,3190.8,40.8]
[1736940783056,7.12871886,3191.4,3190.7,4.683]
[1736940783449,7.12871886,3191.4,3190.7,45.483]
[1736940783949,7.60681886,3191.4,3190.7,4.683]
[1736940784156,7.12871886,3191.4,3190.7,4.683]
[1736940784554,3.92091886,3191.4,3190.7,4.683]
[1736940785148,3.46471886,3191.4,3190.7,4.683]
[1736940785353,3.48170959,3191.8,3190.7,4.683]
[1736940785655,3.41951121,3191.7,3191.1,3.2078]
[1736940785852,3.41951121,3191.7,3190.8,1.263]
[1736940786653,3.41951121,3191.7,3191.1,3.2078]
[1736940788150,3.2078,3191.5,3190.8,1.263]
[1736940788454,6.22690959,3191.5,3190.8,1.263]
[1736940788757,3.61940246,3191.4,3190.8,1.263]
[1736940789058,3.61940246,3191.4,3190.7,4.683]